bitfinex/quotes_BTCUSD_20240611
["timestamp","ask_amount","ask_price","bid_price","bid_amount"]
[1718128748198,0.27209694,66790.0,66789.0,0.1]
[1718128748434,0.27209694,66790.0,66789.0,0.10029138]
[1718128748861,0.27209694,66790.0,66789.0,0.1]
[1718128749099,0.251723,66790.0,66789.0,0.1]
[1718128749787,0.250723,66790.0,66789.0,0.1]
[1718128750074,0.249723,66790.0,66789.0,0.1]
[1718128750299,0.252723,66790.0,66789.0,0.1]
[1718128750995,0.27493936,66790.0,66789.0,0.1]
[1718128751247,0.27893936,66790.0,66789.0,0.1]
[1718128751470,0.27893936,66790.0,66789.0,0.11029138]
[1718128751706,0.256723,66790.0,66789.0,0.1]
[1718128752534,0.27895055,66790.0,66789.0,0.1]
[1718128754002,0.27895055,66790.0,66789.0,0.100935]
[1718128758349,0.449215,66783.0,66782.0,1e-06]
[1718128758596,1.2430799,66783.0,66782.0,1e-06]
[1718128758878,1.0206029,66783.0,66782.0,1e-06]
[1718128759105,1.15042484,66783.0,66782.0,1e-06]
[1718128759687,1.21764313,66783.0,66782.0,1e-06]
[1718128759913,1.45890184,66783.0,66782.0,0.001001]
[1718128760210,1.57152622,66783.0,66782.0,0.001001]
[1718128760432,1.48190184,66783.0,66782.0,0.001001]
[1718128761504,1.46120548,66783.0,66782.0,1e-06]
[1718128761740,1.55111164,66783.0,66782.0,0.001001]
[1718128761976,1.55411164,66783.0,66782.0,1e-06]
[1718128762210,1.56811164,66783.0,66782.0,0.001001]
[1718128762437,1.48687172,66783.0,66782.0,1e-06]
[1718128762673,1.56811164,66783.0,66782.0,1e-06]
[1718128762914,1.58211164,66783.0,66782.0,0.001001]
[1718128763396,1.51487172,66783.0,66782.0,0.001001]
[1718128763605,1.48687172,66783.0,66782.0,1e-06]
[1718128764105,1.47330077,66783.0,66782.0,1e-06]
[1718128764333,1.53208436,66783.0,66782.0,1e-06]
[1718128764801,1.50523436,66783.0,66782.0,1e-06]
[1718128765021,1.51623436,66783.0,66782.0,0.001001]
[1718128765254,1.56101735,66783.0,66782.0,0.001001]
[1718128765492,1.50223436,66783.0,66782.0,0.001001]
[1718128765738,1.43343436,66783.0,66782.0,0.001001]
[1718128765948,1.27993436,66783.0,66782.0,0.001001]
[1718128766173,1.11108103,66783.0,66782.0,0.001001]
[1718128766395,0.75856654,66783.0,66782.0,0.001001]
[1718128766667,0.35908954,66783.0,66782.0,0.001001]
[1718128766896,0.33699152,66783.0,66782.0,0.001001]
[1718128767140,0.32299152,66783.0,66782.0,0.001001]
[1718128767623,0.32299152,66783.0,66782.0,0.500901]
[1718128767624,0.31905793,66783.0,66782.0,0.500901]
[1718128767848,0.41905793,66783.0,66782.0,0.500901]
[1718128768074,0.40505793,66783.0,66782.0,0.500901]
[1718128768297,0.256738,66783.0,66782.0,0.71019238]
[1718128768520,0.262738,66783.0,66782.0,0.71119238]
[1718128768963,0.162738,66783.0,66782.0,0.71119238]
[1718128769875,0.162738,66783.0,66782.0,1.13409238]
[1718128770310,0.162738,66783.0,66782.0,1.14409238]
[1718128771245,0.155738,66783.0,66782.0,1.14409238]
[1718128771453,0.155738,66783.0,66782.0,1.14909238]
[1718128771672,0.156738,66783.0,66782.0,1.14909238]
[1718128771897,0.150738,66783.0,66782.0,1.14809238]
[1718128772117,0.149738,66783.0,66782.0,1.13309238]
[1718128772327,0.150738,66783.0,66782.0,1.14209238]
[1718128772547,0.150738,66783.0,66782.0,1.13309238]
[1718128772969,0.151738,66783.0,66782.0,1.14209238]
[1718128773646,0.152738,66783.0,66782.0,1.14709238]
[1718128785011,0.152738,66783.0,66782.0,0.014001]
[1718128785012,0.93283493,66783.0,66782.0,0.014001]
[1718128785239,1.30258193,66783.0,66782.0,0.014001]
[1718128785462,1.25422141,66783.0,66782.0,0.014001]
[1718128785681,1.75207141,66783.0,66782.0,0.014001]
[1718128785896,1.70007141,66783.0,66782.0,0.005001]
[1718128786119,1.70007141,66783.0,66782.0,0.012001]
[1718128786349,1.70007141,66783.0,66782.0,0.007001]
[1718128786350,1.25222295,66783.0,66782.0,0.007001]
[1718128786579,0.551215,66783.0,66782.0,0.005001]
[1718128786811,0.559215,66783.0,66782.0,0.006001]
[1718128787030,0.559075,66783.0,66782.0,0.001001]
[1718128787480,0.272598,66783.0,66782.0,0.21129238]
[1718128788133,0.250598,66783.0,66782.0,0.21029238]
[1718128788382,0.250598,66783.0,66782.0,1e-06]
[1718128788599,0.261598,66783.0,66782.0,0.01129238]
[1718128788816,0.261598,66783.0,66782.0,0.01029238]
[1718128789246,0.266598,66783.0,66782.0,0.01029238]
[1718128789482,0.266598,66783.0,66782.0,0.21029238]
[1718128789675,0.25060385,66783.0,66782.0,0.21029238]
[1718128791404,0.25060385,66783.0,66782.0,0.01029238]
[1718128791627,0.25060385,66783.0,66782.0,0.21029238]
[1718128793749,0.25060385,66783.0,66782.0,1.01989238]
[1718128793954,0.15060385,66783.0,66782.0,1.01989238]
[1718128794169,0.14460385,66783.0,66782.0,1.01989238]
[1718128794854,0.14460385,66783.0,66782.0,1.02389238]
[1718128795068,0.12462989,66783.0,66782.0,1.02389238]
[1718128795287,0.22462989,66783.0,66782.0,1.02389238]
[1718128795483,0.22462989,66783.0,66782.0,1.02889238]
[1718128796224,0.22462989,66783.0,66782.0,0.21929238]
[1718128796662,0.22462989,66783.0,66782.0,0.01529238]
[1718128796887,0.00085,66801.0,66800.0,19.83915589]
[1718128797113,0.41791626,66801.0,66800.0,19.83915589]
[1718128797336,1.01670826,66801.0,66800.0,19.83915589]
[1718128797552,0.96704527,66801.0,66800.0,19.83915589]
[1718128797764,2.4687767,66801.0,66800.0,19.83915589]
[1718128798041,2.23786296,66801.0,66800.0,19.83915589]
[1718128798224,4.84698396,66801.0,66800.0,19.83915589]
[1718128798664,4.94189096,66801.0,66800.0,19.84015589]
[1718128798880,4.34210596,66801.0,66800.0,19.84015589]
[1718128799123,4.26011196,66801.0,66800.0,0.001]
[1718128800014,4.17975696,66801.0,66800.0,0.002]
[1718128800244,3.81575696,66801.0,66800.0,0.00161]
[1718128800475,4.11513294,66801.0,66800.0,0.00161]
[1718128800726,0.449215,66783.0,66782.0,1e-06]
[1718128800945,0.549215,66783.0,66782.0,1e-06]
[1718128801183,0.249738,66783.0,66782.0,1e-06]
[1718128801651,0.69353493,66783.0,66782.0,1e-06]
[1718128801882,0.68956097,66783.0,66782.0,1e-06]
[1718128802382,0.72182189,66783.0,66782.0,1e-06]
[1718128802612,1.02129889,66783.0,66782.0,0.004001]
[1718128803514,1.02129889,66783.0,66782.0,1e-06]
[1718128803962,1.57325889,66783.0,66782.0,1e-06]
[1718128804200,1.59625889,66783.0,66782.0,1e-06]
[1718128804436,1.90773589,66783.0,66782.0,1e-06]
[1718128805135,1.93115309,66783.0,66782.0,1e-06]
[1718128805582,0.449283,66773.0,66772.0,0.00018028]
[1718128805845,0.71660293,66773.0,66772.0,0.00018028]
[1718128806066,0.74886385,66773.0,66772.0,0.00018028]
[1718128807189,0.28202192,66773.0,66772.0,0.00018028]
[1718128807416,0.255761,66773.0,66772.0,0.00018028]
[1718128807633,0.25547061,66773.0,66772.0,0.00018028]
[1718128807856,0.25517956,66773.0,66772.0,0.00018028]
[1718128808314,0.26417956,66773.0,66772.0,0.00018028]
[1718128809736,0.26417956,66773.0,66772.0,0.81777166]
[1718128809957,0.26417956,66773.0,66772.0,1.13676482]
[1718128810179,0.26417956,66773.0,66772.0,1.01777166]
[1718128810634,0.115,66773.0,66772.0,1.01777166]
[1718128810896,0.015,66773.0,66772.0,1.12777166]
[1718128811379,0.01466023,66773.0,66772.0,1.11777166]
[1718128811599,0.00566023,66773.0,66772.0,1.26776482]
[1718128811819,0.149752,66777.0,66776.0,0.21029138]
[1718128812037,0.149752,66777.0,66776.0,0.28245134]
[1718128812267,0.249752,66777.0,66776.0,0.28245134]
[1718128812487,0.149742,66782.0,66781.0,0.31029138]
[1718128812961,0.149725,66789.0,66788.0,0.01029138]
[1718128813182,0.149725,66789.0,66788.0,0.99409138]
[1718128814644,0.163725,66789.0,66788.0,0.99409138]
[1718128814872,0.163725,66789.0,66788.0,0.79409138]
[1718128815105,0.149725,66789.0,66788.0,0.99409138]
[1718128815331,0.254725,66789.0,66788.0,0.99409138]
[1718128815557,0.00085,66801.0,66800.0,18.767318]
[1718128815558,0.449944,66801.0,66800.0,18.767318]
[1718128815778,0.62612264,66801.0,66800.0,18.767318]
[1718128816512,1.4410522,66801.0,66800.0,18.767318]
[1718128816764,0.8356042,66801.0,66800.0,18.767318]
[1718128817002,0.8012432,66801.0,66800.0,18.767318]
[1718128817461,0.9012432,66801.0,66800.0,18.767318]
[1718128817691,1.0430622,66801.0,66800.0,18.767318]
[1718128817926,0.7436662,66801.0,66800.0,18.767318]
[1718128818165,0.7436662,66801.0,66800.0,18.768318]
[1718128818166,0.71180749,66801.0,66800.0,18.768318]
[1718128818389,0.72280749,66801.0,66800.0,0.001]
[1718128818616,0.73680749,66801.0,66800.0,0.001]
[1718128818841,0.149714,66794.0,66793.0,0.11029138]
[1718128819094,0.39403393,66794.0,66793.0,0.11029138]
[1718128820655,0.39403393,66794.0,66793.0,0.1]
[1718128821098,0.40103393,66794.0,66793.0,0.101]
[1718128821770,0.40603393,66794.0,66793.0,0.101]
[1718128822774,0.40603393,66794.0,66793.0,0.001]
[1718128823128,0.38495745,66801.0,66800.0,18.88801548]
[1718128823130,0.83405145,66801.0,66800.0,18.88801548]
[1718128823347,0.97946443,66801.0,66800.0,18.88801548]
[1718128823752,3.00228709,66801.0,66800.0,18.88801548]
[1718128824878,3.14660702,66801.0,66800.0,18.88801548]
[1718128825066,3.28360702,66801.0,66800.0,18.88901548]
[1718128825208,3.21643036,66801.0,66800.0,0.001]
[1718128825591,3.05330468,66801.0,66800.0,0.001]
[1718128825793,3.23120468,66801.0,66800.0,0.001]
[1718128826000,2.80981221,66801.0,66800.0,0.001]
[1718128826232,2.77738258,66801.0,66800.0,0.001]
[1718128826940,0.449155,66792.0,66791.0,0.07215996]
[1718128827152,0.69347493,66792.0,66791.0,0.07215996]
[1718128827368,1.60340893,66792.0,66791.0,0.07215996]
[1718128827586,0.69347493,66792.0,66791.0,0.07215996]
[1718128827820,1.65984893,66792.0,66791.0,0.07215996]
[1718128828035,0.249718,66792.0,66791.0,0.86585996]
[1718128828250,0.253718,66792.0,66791.0,0.86685996]
[1718128828709,0.259718,66792.0,66791.0,0.86685996]
[1718128829551,0.259718,66792.0,66791.0,0.86585996]
[1718128829552,0.249718,66792.0,66791.0,0.86585996]
[1718128829773,0.251718,66792.0,66791.0,1.07615134]
[1718128831570,0.257718,66792.0,66791.0,1.07615134]
[1718128831801,0.253718,66792.0,66791.0,1.07615134]
[1718128832229,0.254718,66792.0,66791.0,1.07815134]
[1718128833096,0.250718,66792.0,66791.0,1.07815134]
[1718128833521,0.250718,66792.0,66791.0,1.08115134]
[1718128834892,0.01839356,66801.0,66800.0,17.565459]
[1718128835102,0.18571349,66801.0,66800.0,17.565459]
[1718128836000,0.63480749,66801.0,66800.0,17.565459]
[1718128836218,0.64080749,66801.0,66800.0,17.565459]
[1718128836936,0.149705,66798.0,66797.0,0.01029138]
[1718128837168,0.39402493,66798.0,66797.0,0.01029138]
[1718128837386,0.39402493,66798.0,66797.0,0.21029138]
[1718128837597,0.149707,66797.0,66796.0,0.11029138]
[1718128837820,0.249707,66797.0,66796.0,0.11029138]
[1718128838905,0.250707,66797.0,66796.0,0.11029138]
[1718128839347,0.250707,66797.0,66796.0,0.31029138]
[1718128839815,0.253707,66797.0,66796.0,0.31029138]
[1718128840041,0.253707,66797.0,66796.0,1.32270651]
[1718128840042,0.153707,66797.0,66796.0,1.32270651]
[1718128840259,0.153707,66797.0,66796.0,1.20509138]
[1718128841146,0.150707,66797.0,66796.0,1.20509138]
[1718128841384,0.00085,66801.0,66800.0,0.21029138]
[1718128841592,0.00085,66801.0,66800.0,0.99719138]
[1718128841801,0.00085,66801.0,66800.0,1.10719138]
[1718128842245,0.00085,66801.0,66800.0,1.09719138]
[1718128842705,0.00085,66801.0,66800.0,18.91336838]
[1718128842926,0.00085,66801.0,66800.0,18.91636838]
[1718128843404,0.00085,66801.0,66800.0,18.91936838]
[1718128844078,0.00085,66801.0,66800.0,1.10319138]
[1718128844292,0.00085,66801.0,66800.0,1.10019138]
[1718128844505,0.00085,66801.0,66800.0,1.09719138]
[1718128844724,0.00185,66801.0,66800.0,1.10019138]
[1718128844945,0.00085,66801.0,66800.0,1.09719138]
[1718128845382,0.00085,66801.0,66800.0,1.10019138]
[1718128845597,0.151548,66801.0,66800.0,0.57509138]
[1718128845820,0.251548,66801.0,66800.0,0.77509138]
[1718128846268,0.252548,66801.0,66800.0,0.78409138]
[1718128846717,0.251548,66801.0,66800.0,0.77509138]
[1718128846946,0.251548,66801.0,66800.0,0.77809138]
[1718128847436,0.251548,66801.0,66800.0,0.77509138]
[1718128848344,0.251548,66801.0,66800.0,0.77209138]
[1718128848582,0.250548,66801.0,66800.0,0.77209138]
[1718128848807,0.251548,66801.0,66800.0,0.77509138]
[1718128849056,0.251548,66801.0,66800.0,0.77809138]
[1718128849756,0.251548,66801.0,66800.0,0.77509138]
[1718128849990,0.251548,66801.0,66800.0,0.77809138]
[1718128850874,0.251548,66801.0,66800.0,0.57809138]
[1718128851083,0.251548,66801.0,66800.0,0.77809138]
[1718128851929,0.10185,66801.0,66800.0,0.77809138]
[1718128852563,0.10185,66801.0,66800.0,0.78509138]
[1718128852772,0.10185,66801.0,66800.0,1.10299138]
[1718128852987,0.10085,66801.0,66800.0,1.10299138]
[1718128853412,0.00185,66801.0,66800.0,1.10599138]
[1718128853650,0.00185,66801.0,66800.0,1.141091]
[1718128853859,0.00185,66801.0,66800.0,1.10599138]
[1718128855386,0.00185,66801.0,66800.0,1.20599138]
[1718128855622,0.00185,66801.0,66800.0,1.30599138]
[1718128856939,0.00185,66801.0,66800.0,1.30299138]
[1718128857148,0.00285,66801.0,66800.0,1.31399138]
[1718128857375,0.00285,66801.0,66800.0,1.63621131]
[1718128857610,0.00185,66801.0,66800.0,1.62521131]
[1718128857831,0.00085,66801.0,66800.0,1.62221131]
[1718128858038,0.00185,66801.0,66800.0,1.63321131]
[1718128859327,0.00285,66801.0,66800.0,1.64121131]
[1718128859757,0.00285,66801.0,66800.0,1.46331131]
[1718128859995,0.00285,66801.0,66800.0,1.64121131]
[1718128860220,0.00285,66801.0,66800.0,1.49689138]
[1718128860872,0.00285,66801.0,66800.0,1.30899138]
[1718128861095,0.00285,66801.0,66800.0,1.20899138]
[1718128863275,0.00285,66801.0,66800.0,1.49689138]
[1718128864383,0.00285,66801.0,66800.0,1.88870131]
[1718128864608,0.00285,66801.0,66800.0,2.03302124]
[1718128865076,0.00285,66801.0,66800.0,2.15723572]
[1718128865300,0.00285,66801.0,66800.0,1.97933572]
[1718128865534,0.00285,66801.0,66800.0,1.87542124]
[1718128865763,0.00285,66801.0,66800.0,1.29888138]
[1718128865981,0.00285,66801.0,66800.0,0.89109138]
[1718128866229,0.00285,66801.0,66800.0,0.219]
[1718128866927,0.00285,66801.0,66800.0,0.22929138]
[1718128867147,0.152548,66801.0,66800.0,0.22929138]
[1718128867363,0.252548,66801.0,66800.0,0.22929138]
[1718128868038,0.252548,66801.0,66800.0,0.219]
[1718128868270,0.252548,66801.0,66800.0,0.22929138]
[1718128868488,0.252548,66801.0,66800.0,0.50145134]
[1718128869572,0.252548,66801.0,66800.0,0.119]
[1718128869872,0.39686793,66801.0,66800.0,0.019]
[1718128870101,0.41986793,66801.0,66800.0,0.019]
[1718128870797,0.149711,66795.0,66794.0,0.1]
[1718128871023,0.26731993,66795.0,66792.0,0.00934804]
[1718128871148,0.24431993,66794.0,66792.0,0.00934804]
[1718128871388,0.449148,66793.0,66792.0,0.00934804]
[1718128871583,0.71646793,66793.0,66792.0,0.00934804]
[1718128872219,0.249716,66793.0,66792.0,0.31963942]
[1718128872461,0.249716,66793.0,66792.0,0.81353942]
[1718128872970,0.249716,66793.0,66792.0,0.94414936]
[1718128874091,0.249716,66793.0,66792.0,0.81353942]
[1718128874775,0.255716,66793.0,66792.0,0.81453942]
[1718128875012,0.256716,66793.0,66792.0,0.81753942]
[1718128875231,0.250716,66793.0,66792.0,0.81653942]
[1718128875454,0.250716,66793.0,66792.0,0.81953942]
[1718128876322,0.250716,66793.0,66792.0,0.61953942]
[1718128876955,0.250716,66793.0,66792.0,0.81953942]
[1718128877364,0.250716,66793.0,66792.0,0.60924804]
[1718128877570,0.250716,66793.0,66792.0,0.11534804]
[1718128877802,0.25043081,66793.0,66792.0,0.11534804]
[1718128877979,0.25043081,66793.0,66792.0,0.10934804]
[1718128877980,0.24943081,66793.0,66792.0,0.10934804]
[1718128878219,0.25043081,66793.0,66792.0,0.11234804]
[1718128878635,0.24943081,66793.0,66792.0,0.11234804]
[1718128878841,0.25043081,66793.0,66792.0,0.11234804]
[1718128879110,0.25043081,66793.0,66792.0,0.31963942]
[1718128879275,0.25043081,66793.0,66792.0,0.32163942]
[1718128880113,0.24943081,66793.0,66792.0,0.32163942]
[1718128881477,0.24943081,66793.0,66792.0,0.11434804]
[1718128881717,0.24943081,66793.0,66792.0,0.19679938]
[1718128881962,0.24943081,66793.0,66792.0,0.39579938]
[1718128882421,0.25043081,66793.0,66792.0,0.39579938]
[1718128883383,0.25043081,66793.0,66792.0,0.185508]
[1718128886503,0.25043081,66793.0,66792.0,0.39579938]
[1718128887435,0.25043081,66793.0,66792.0,0.70969938]
[1718128894428,0.25043081,66793.0,66792.0,0.83394447]
[1718128895498,0.25043081,66793.0,66792.0,0.30975309]
[1718128895732,0.54986281,66793.0,66792.0,0.185508]
[1718128896830,0.58216663,66793.0,66792.0,0.185508]
[1718128897301,0.54986281,66793.0,66792.0,0.185508]
[1718128897495,0.58216663,66793.0,66792.0,0.185508]
[1718128900178,1.02591856,66793.0,66792.0,0.085508]
[1718128900395,1.16881756,66793.0,66792.0,0.01334804]
[1718128900615,1.17998223,66793.0,66792.0,0.01334804]
[1718128901268,1.17998223,66793.0,66792.0,0.00934804]
[1718128901269,1.17898223,66793.0,66792.0,0.00934804]
[1718128901698,1.18998223,66793.0,66792.0,0.01034804]
[1718128902136,1.07008323,66793.0,66792.0,0.01034804]
[1718128902371,0.9257633,66793.0,66792.0,0.01034804]
[1718128902594,0.9257633,66793.0,66792.0,0.082508]
[1718128902595,0.6033313,66793.0,66792.0,0.082508]
[1718128902818,0.3038993,66793.0,66792.0,1.09669938]
[1718128903042,0.26043081,66793.0,66792.0,1.09669938]
[1718128903746,0.25443081,66793.0,66792.0,1.22636932]
[1718128903956,0.26343081,66793.0,66792.0,1.23636932]
[1718128904167,0.26343081,66793.0,66792.0,1.23736932]
[1718128904620,0.26843081,66793.0,66792.0,1.23736932]
[1718128904835,0.25443081,66793.0,66792.0,1.23636932]
[1718128905060,0.25443081,66793.0,66792.0,1.22636932]
[1718128905684,0.26043081,66793.0,66792.0,1.22736932]
[1718128907184,0.26043081,66793.0,66792.0,1.33736932]
[1718128907476,0.26043081,66793.0,66792.0,1.43736932]
[1718128907730,0.011,66793.0,66792.0,1.43736932]
[1718128908743,0.011,66793.0,66792.0,1.82917925]
[1718128908947,0.00085,66801.0,66792.0,1.82917925]
[1718128908948,0.00085,66801.0,66800.0,18.33646838]
[1718128909195,0.00085,66801.0,66800.0,19.20622834]
[1718128909604,0.00085,66801.0,66800.0,19.19622834]
[1718128910946,0.00085,66801.0,66800.0,19.19822834]
[1718128911184,0.00085,66801.0,66800.0,1.38205134]
[1718128911424,0.00085,66801.0,66800.0,1.28205134]
[1718128911661,0.150548,66801.0,66800.0,1.28205134]
[1718128911901,0.250548,66801.0,66800.0,0.28445134]
[1718128912652,0.250548,66801.0,66800.0,0.48445134]
[1718128912882,0.250548,66801.0,66800.0,0.28445134]
[1718128913115,0.28303641,66801.0,66800.0,0.28445134]
[1718128913615,0.28303641,66801.0,66800.0,0.17415996]
[1718128913865,0.28303641,66801.0,66800.0,0.07415996]
[1718128913866,0.35074761,66801.0,66800.0,0.07415996]
[1718128914102,0.35074761,66801.0,66800.0,0.07215996]
[1718128914606,0.35774761,66801.0,66800.0,0.07315996]
[1718128915080,0.35774761,66801.0,66800.0,0.07215996]
[1718128915376,0.35074761,66801.0,66800.0,0.07215996]
[1718128915652,0.35774761,66801.0,66800.0,0.07215996]
[1718128916808,0.36674761,66801.0,66800.0,0.07315996]
[1718128917265,0.35774761,66801.0,66800.0,0.07215996]
[1718128917569,0.36674761,66801.0,66800.0,0.07215996]
[1718128917676,0.37674761,66801.0,66800.0,0.08345134]
[1718128917923,0.36074761,66801.0,66800.0,0.89765996]
[1718128918179,0.149702,66799.0,66798.0,0.1]
[1718128918433,0.18219041,66799.0,66798.0,0.1]
[1718128918681,0.30519041,66799.0,66798.0,0.21029138]
[1718128918930,0.30519041,66799.0,66798.0,0.2]
[1718128919407,0.28219041,66799.0,66798.0,0.41029138]
[1718128919647,0.28219041,66799.0,66798.0,1.23479138]
[1718128919883,0.29119041,66799.0,66798.0,1.23479138]
[1718128920120,0.258702,66799.0,66798.0,1.23479138]
[1718128920805,0.258702,66799.0,66798.0,1.0245]
[1718128921050,0.268702,66799.0,66798.0,1.0255]
[1718128922552,0.268702,66799.0,66798.0,1.03579138]
[1718128923514,0.268702,66799.0,66798.0,1.0255]
[1718128923717,0.268702,66799.0,66798.0,0.201]
[1718128923965,0.26841146,66799.0,66798.0,0.201]
[1718128924174,0.00085,66801.0,66800.0,17.51540532]
[1718128924804,0.06736977,66801.0,66800.0,17.51540532]
[1718128925212,0.21706777,66801.0,66800.0,17.51540532]
[1718128925417,0.23006777,66801.0,66800.0,17.51640532]
[1718128925624,0.23006777,66801.0,66800.0,17.56361435]
[1718128925830,0.23006777,66801.0,66800.0,0.24820903]
[1718128926044,0.174548,66801.0,66800.0,0.24820903]
[1718128926248,0.274548,66801.0,66800.0,0.24820903]
[1718128927331,0.274548,66801.0,66800.0,0.21129138]
[1718128929831,0.274548,66801.0,66800.0,1.02129138]
[1718128930042,0.274548,66801.0,66800.0,1.13129138]
[1718128930257,0.174548,66801.0,66800.0,1.13129138]
[1718128930459,0.174548,66801.0,66800.0,1.12129138]
[1718128930670,0.174548,66801.0,66800.0,1.26163651]
[1718128930870,0.174548,66801.0,66800.0,1.27163651]
[1718128931082,0.161548,66801.0,66800.0,1.27063651]
[1718128931292,0.162548,66801.0,66800.0,1.27063651]
[1718128931930,0.161548,66801.0,66800.0,1.27063651]
[1718128932122,0.161548,66801.0,66800.0,1.27463651]
[1718128932329,0.161548,66801.0,66800.0,1.27820551]
[1718128932530,0.01185,66801.0,66800.0,1.37820551]
[1718128932736,0.01185,66801.0,66800.0,1.37420551]
[1718128933413,0.00085,66801.0,66800.0,1.37420551]
[1718128933859,0.00085,66801.0,66800.0,1.37520551]
[1718128934074,0.00085,66801.0,66800.0,1.37620551]
[1718128934490,0.00085,66801.0,66800.0,1.38220551]
[1718128934491,0.00185,66801.0,66800.0,1.38220551]
[1718128934713,0.00185,66801.0,66800.0,1.37420551]
[1718128934919,0.00185,66801.0,66800.0,1.37720551]
[1718128935142,0.00185,66801.0,66800.0,1.24186038]
[1718128935395,0.00085,66801.0,66800.0,1.63367031]
[1718128935629,0.00085,66801.0,66800.0,1.62567031]
[1718128935854,0.00085,66801.0,66800.0,1.63267031]
[1718128936068,0.00085,66801.0,66800.0,1.77699024]
[1718128936991,0.00185,66801.0,66800.0,1.64167031]
[1718128937226,0.00085,66801.0,66800.0,1.62567031]
[1718128937661,0.00185,66801.0,66800.0,1.64267031]
[1718128937871,0.00156481,66801.0,66800.0,1.63067031]
[1718128938093,0.00156481,66801.0,66800.0,1.78199024]
[1718128938319,0.15226281,66801.0,66800.0,1.12586038]
[1718128938534,0.15026281,66801.0,66800.0,1.22186038]
[1718128938756,0.15026281,66801.0,66800.0,1.12186038]
[1718128938990,0.15126281,66801.0,66800.0,1.13186038]
[1718128939665,0.15126281,66801.0,66800.0,1.23186038]
[1718128939882,0.15126281,66801.0,66800.0,1.37618031]
[1718128940330,0.15126281,66801.0,66800.0,1.39618031]
[1718128941970,0.15126281,66801.0,66800.0,1.37618031]
[1718128942854,0.15126281,66801.0,66800.0,1.27618031]
[1718128943094,0.15126281,66801.0,66800.0,1.39618031]
[1718128944004,0.15126281,66801.0,66800.0,1.25186038]
[1718128944654,0.00156481,66801.0,66800.0,1.64367031]
[1718128949115,0.00156481,66801.0,66800.0,1.62567031]
[1718128949341,0.00056481,66801.0,66800.0,1.62567031]
[1718128951023,0.00056481,66801.0,66800.0,1.70767031]
[1718128951268,0.00056481,66801.0,66800.0,1.76844648]
[1718128951683,0.00056481,66801.0,66800.0,1.75744648]
[1718128952143,0.00056481,66801.0,66800.0,1.76844648]
[1718128957656,0.00056481,66801.0,66800.0,1.69744648]
[1718128957888,0.00027962,66801.0,66800.0,1.76844648]
[1718128958827,0.00027962,66801.0,66800.0,1.76344648]
[1718128961266,0.00027962,66801.0,66800.0,1.77344648]
[1718128961495,0.00027962,66801.0,66800.0,1.89100427]
[1718128963312,0.14922157,66806.0,66805.0,0.41886038]
[1718128963535,0.150516,66815.0,66814.0,1.17686038]
[1718128963763,0.00085,66815.0,66814.0,1.24786038]
[1718128964893,0.00085,66815.0,66814.0,1.25086038]
[1718128965112,0.00085,66815.0,66814.0,1.38594642]
[1718128965330,0.00085,66815.0,66814.0,1.64554642]
[1718128965784,0.00085,66815.0,66814.0,1.87975635]
[1718128966006,0.00085,66815.0,66814.0,1.88375635]
[1718128966727,0.00085,66815.0,66814.0,1.998542]
[1718128967122,0.00085,66815.0,66814.0,1.88375635]
[1718128967336,0.00085,66815.0,66814.0,2.07975635]
[1718128967552,0.00085,66815.0,66814.0,2.07475635]
[1718128967785,0.00085,66815.0,66814.0,2.51297346]
[1718128968001,0.00085,66815.0,66814.0,3.07377895]
[1718128968221,0.00085,66815.0,66814.0,2.99519965]
[1718128968657,0.00085,66815.0,66814.0,2.72912095]
[1718128969080,0.00085,66815.0,66814.0,2.71712095]
[1718128969309,0.00085,66815.0,66814.0,2.40670094]
[1718128969575,0.00018065,66830.0,66829.0,0.21886038]
[1718128969791,0.00018065,66830.0,66829.0,1.45172034]
[1718128970256,0.00018065,66830.0,66829.0,1.84353027]
[1718128971366,0.00018065,66830.0,66829.0,1.85553027]
[1718128971833,0.00018065,66830.0,66829.0,1.84353027]
[1718128972051,0.00018065,66830.0,66829.0,2.0108502]
[1718128973190,0.03711,66852.0,66850.0,16.90482625]
[1718128973441,0.9368241,66851.0,66850.0,16.90482625]
[1718128974473,1.0864101,66851.0,66850.0,16.90482625]
[1718128974800,1.0154101,66851.0,66850.0,17.00582625]
[1718128975234,1.0924101,66851.0,66850.0,17.00582625]
[1718128975484,1.0924101,66851.0,66850.0,17.00482625]
[1718128976586,1.0924101,66851.0,66850.0,17.00582625]
[1718128976841,1.0924101,66851.0,66850.0,17.00482625]
[1718128977643,1.0924101,66851.0,66850.0,17.00582625]
[1718128977903,1.0924101,66851.0,66850.0,17.00482625]
[1718128978136,1.09212491,66851.0,66850.0,17.00482625]
[1718128978379,1.09212491,66851.0,66850.0,17.00582625]
[1718128979899,1.09212491,66851.0,66850.0,17.20468663]
[1718128980168,1.09212491,66851.0,66850.0,17.00582625]
[1718128980442,1.39129691,66851.0,66850.0,17.00582625]
[1718128980699,0.73607793,66851.0,66850.0,16.90582625]
[1718128981517,0.73607793,66851.0,66850.0,0.001]
[1718128982405,0.149617,66837.0,66836.0,0.4793]
[1718128982695,0.149633,66830.0,66829.0,0.17215996]
[1718128982974,0.149633,66830.0,66829.0,0.07215996]
[1718128983287,0.249633,66830.0,66829.0,0.17215996]
[1718128984288,0.249633,66830.0,66829.0,0.07215996]
[1718128985258,0.272633,66830.0,66829.0,0.17215996]
[1718128985452,0.272633,66830.0,66829.0,0.08615996]
[1718128985717,0.571899,66830.0,66829.0,0.014]
[1718128985978,0.73621893,66830.0,66829.0,0.014]
[1718128986219,0.73621893,66830.0,66829.0,0.024]
[1718128986220,0.89461893,66830.0,66829.0,0.024]
[1718128986467,0.73721893,66830.0,66829.0,0.01]
[1718128987158,0.71721893,66830.0,66829.0,0.01]
[1718128987856,0.73621893,66830.0,66829.0,0.01]
[1718128988074,0.14964,66827.0,66826.0,0.1]
[1718128988306,0.27264,66827.0,66826.0,0.1]
[1718128988531,0.29264,66827.0,66826.0,0.1]
[1718128988753,0.27264,66827.0,66826.0,0.1]
[1718128989680,0.27364,66827.0,66826.0,0.1]
[1718128990361,0.27564,66827.0,66826.0,0.1]
[1718128992615,0.25264,66827.0,66826.0,0.1]
[1718128992865,0.27564,66827.0,66826.0,0.1]
[1718128994685,0.27564,66827.0,66826.0,0.29886038]
[1718128995097,0.25264,66827.0,66826.0,0.29886038]
[1718128995376,0.25264,66827.0,66826.0,0.1]
[1718128996071,0.27564,66827.0,66826.0,0.1]